fUSD/lending_fUSD_20251024
["ID","MTS","AMOUNT","RATE_DAILY","PERIOD"]
[392284384,1761307849702,-151.0,0.0003999,120]
[392284385,1761307849713,-151.0,0.0003999,120]
[392284386,1761307849722,-223.517104,0.0003999,120]
[392284387,1761307849733,-151.0,0.0003999,120]
[392284388,1761307849744,-151.0,0.0003999,120]
[392284389,1761307849756,-151.0,0.0003999,120]
[392284390,1761307849767,-151.0,0.0003999,120]
[392284391,1761307849776,-151.0,0.0003999,120]
[392284392,1761307849786,-151.0,0.0003999,120]
[392284393,1761307849796,-151.0,0.0003999,120]
[392284394,1761307849805,-151.0,0.0003999,120]
[392284395,1761307849816,-261.381651,0.0003999,120]
[392284396,1761307849826,-261.381651,0.0003999,120]
[392284397,1761307849836,-151.0,0.0003999,120]
[392284398,1761307849846,-151.0,0.0003999,120]
[392284399,1761307849856,-261.381651,0.0003999,120]
[392284400,1761307849866,-261.381651,0.0003999,120]
[392284401,1761307849876,-174.6337,0.0003999,120]
[392284402,1761307849887,-151.0,0.0003999,120]
[392284403,1761307849897,-151.0,0.0003999,30]
[392284404,1761307849907,-151.0,0.0003999,120]
[392284405,1761307849917,-151.0,0.0003999,30]
[392284406,1761307849926,-261.381651,0.0003999,120]
[392284407,1761307849935,-261.381651,0.0003999,120]
[392284408,1761307849945,-152.421578,0.0003999,120]
[392284409,1761307849955,-300.726889,0.0003999,120]
[392284410,1761307849967,-261.381651,0.0003999,120]
[392284411,1761307849977,-151.0,0.0003999,120]
[392284412,1761307849986,-261.381651,0.0003999,120]
[392284413,1761307849996,-151.0,0.0003999,120]
[392284414,1761307850006,-151.0,0.0003999,120]
[392284415,1761307850016,-151.0,0.0003999,120]
[392284416,1761307850025,-151.0,0.0003999,120]
[392284417,1761307850039,-152.86256,0.0003999,120]
[392284418,1761307850050,-151.0,0.0003999,120]
[392284419,1761307850060,-152.276425,0.0003999,120]
[392284420,1761307850070,-152.02075,0.0003999,120]
[392284421,1761307850079,-152.02075,0.0003999,120]
[392284422,1761307850088,-151.0,0.0003999,120]
[392284423,1761307850098,-151.0,0.0003999,120]
[392284424,1761307850107,-151.0,0.0003999,120]
[392284425,1761307850118,-151.0,0.0003999,120]
[392284426,1761307850129,-235.93705,0.0003999,120]
[392284427,1761307850140,-151.0,0.0003999,120]
[392284428,1761307850150,-152.02075,0.0003999,120]
[392284429,1761307850160,-152.02075,0.0003999,120]
[392284430,1761307850171,-152.02075,0.0003999,120]
[392284431,1761307850182,-152.02075,0.0003999,120]
[392284432,1761307850191,-151.0,0.0003999,120]
[392284433,1761307850200,-151.0,0.0003999,120]
[392284434,1761307850210,-152.02075,0.0003999,120]
[392284435,1761307850218,-152.02075,0.0003999,120]
[392284436,1761307850228,-151.0,0.0003999,120]
[392284437,1761307850237,-151.0,0.0003999,120]
[392284438,1761307850246,-880.38435,0.0003999,120]
[392284439,1761307850255,-880.38435,0.0003999,120]
[392284440,1761307850264,-334.937302,0.0003999,120]
[392284441,1761307850274,-334.937302,0.0003999,120]
[392284442,1761307850283,-334.937302,0.0003999,120]
[392284443,1761307850292,-880.38435,0.0003999,120]
[392284444,1761307850301,-880.38435,0.0003999,120]
[392284445,1761307850310,-151.0,0.0003999,120]
[392284446,1761307850319,-1849.71597,0.0003999,30]
[392284447,1761307850329,-151.0,0.0003999,120]
[392284448,1761307850339,-151.0,0.0003999,120]
[392284449,1761307850348,-271.943209,0.0003999,120]
[392284450,1761307850359,-151.0,0.0003999,120]
[392284451,1761307850370,-1849.71597,0.0003999,30]
[392284452,1761307850380,-271.943209,0.0003999,120]
[392284453,1761307850390,-151.0,0.0003999,120]
[392284454,1761307850399,-880.38435,0.0003999,120]
[392284455,1761307850408,-151.0,0.0003999,120]
[392284456,1761307850418,-880.38435,0.0003999,120]
[392284457,1761307850427,-151.0,0.0003999,120]
[392284458,1761307850436,-151.0,0.0003999,120]
[392284459,1761307850446,-271.943209,0.0003999,120]
[392284460,1761307850455,-151.0,0.0003999,120]
[392284461,1761307850465,-880.38435,0.0003999,120]
[392284462,1761307850474,-271.943209,0.0003999,120]
[392284463,1761307850484,-880.38435,0.0003999,120]
[392284464,1761307850493,-151.0,0.0003999,120]
[392284465,1761307850502,-271.943209,0.0003999,120]
[392284466,1761307850512,-271.943209,0.0003999,120]
[392284467,1761307850522,-271.943209,0.0003999,120]
[392284468,1761307850534,-271.943209,0.0003999,120]
[392284469,1761307850543,-151.0,0.0003999,120]
[392284470,1761307850553,-151.0,0.0003999,120]
[392284471,1761307850563,-151.0,0.0003999,120]
[392284472,1761307850572,-151.0,0.0003999,120]
[392284473,1761307850582,-151.0,0.0003999,120]
[392284474,1761307850591,-373.73733,0.0003999,120]
[392284475,1761307850600,-373.73733,0.0003999,120]
[392284476,1761307850610,-151.0,0.0003999,120]
[392284477,1761307850620,-152.612538,0.0003999,120]
[392284478,1761307850631,-373.73733,0.0003999,120]
[392284479,1761307850640,-83799.460067,0.0003999,3]
[392284480,1761307850649,-373.73733,0.0003999,120]
[392284481,1761307850659,-698.815274,0.0003999,120]
[392284482,1761307850668,-698.815274,0.0003999,120]
[392284483,1761307850677,-152.042604,0.0003999,120]
[392284484,1761307850686,-698.815274,0.0003999,120]
[392284485,1761307850696,-373.73733,0.0003999,120]
[392284486,1761307850705,-698.815274,0.0003999,120]
[392284487,1761307850714,-373.73733,0.0003999,120]
[392284488,1761307850723,-247.663628,0.0003999,120]
[392284489,1761307850732,-247.663628,0.0003999,120]
[392284490,1761307850742,-247.663628,0.0003999,120]
[392284491,1761307850751,-373.73733,0.0003999,120]
[392284492,1761307850760,-247.663628,0.0003999,120]
[392284493,1761307850845,-698.815274,0.0003999,120]
[392284494,1761307850854,-373.73733,0.0003999,120]
[392284495,1761307850863,-698.815274,0.0003999,120]
[392284496,1761307850872,-184.686739,0.0003999,120]
[392284497,1761307850881,-184.686739,0.0003999,120]
[392284498,1761307850890,-247.663628,0.0003999,120]
[392284499,1761307850899,-247.663628,0.0003999,120]
[392284500,1761307850908,-698.815274,0.0003999,120]
[392284501,1761307850917,-184.686739,0.0003999,120]
[392284502,1761307850926,-698.815274,0.0003999,120]
[392284503,1761307850935,-184.686739,0.0003999,120]
[392284504,1761307850944,-247.663628,0.0003999,120]
[392284505,1761307850953,-247.663628,0.0003999,120]
[392284506,1761307850962,-151.0,0.0003999,120]
[392284507,1761307850971,-151.0,0.0003999,120]
[392284508,1761307850981,-184.686739,0.0003999,120]
[392284509,1761307850990,-151.0,0.0003999,120]
[392284510,1761307850999,-184.686739,0.0003999,120]
[392284511,1761307851008,-151.0,0.0003999,120]
[392284512,1761307851017,-151.0,0.0003999,120]
[392284513,1761307851026,-184.686739,0.0003999,120]
[392284514,1761307851035,-184.686739,0.0003999,120]
[392284515,1761307851044,-151.0,0.0003999,120]
[392284516,1761307851053,-152.980179,0.0003999,120]
[392284517,1761307851062,-333.224117,0.0003999,120]
[392284518,1761307851071,-151.0,0.0003999,120]
[392284519,1761307851080,-333.224117,0.0003999,120]
[392284520,1761307851089,-151.0,0.0003999,120]
[392284521,1761307851098,-151.0,0.0003999,30]
[392284522,1761307851107,-333.224117,0.0003999,120]
[392284523,1761307851115,-333.224117,0.0003999,120]
[392284524,1761307851124,-333.224117,0.0003999,120]
[392284525,1761307851133,-333.224117,0.0003999,120]
[392284526,1761307851142,-641.645906,0.0003999,120]
[392284527,1761307851151,-641.645906,0.0003999,120]
[392284528,1761307851160,-333.224117,0.0003999,120]
[392284529,1761307851169,-151.0,0.0003999,120]
[392284530,1761307851179,-151.0,0.0003999,120]
[392284531,1761307851187,-641.645906,0.0003999,120]
[392284532,1761307851196,-151.0,0.0003999,120]
[392284533,1761307851205,-333.224117,0.0003999,120]
[392284534,1761307851215,-641.645906,0.0003999,120]
[392284535,1761307851224,-151.0,0.0003999,120]
[392284536,1761307851233,-151.0,0.0003999,120]
[392284537,1761307851243,-494.954697,0.0003999,120]
[392284538,1761307851251,-151.0,0.0003999,120]
[392284539,1761307851260,-494.954697,0.0003999,120]
[392284540,1761307851270,-641.645906,0.0003999,120]
[392284541,1761307851279,-641.645906,0.0003999,120]
[392284542,1761307851288,-151.0,0.0003999,120]
[392284543,1761307851298,-151.0,0.0003999,120]
[392284544,1761307851307,-151.0,0.0003999,120]
[392284545,1761307851316,-151.0,0.0003999,120]
[392284546,1761307851325,-641.645906,0.0003999,120]
[392284547,1761307851335,-641.645906,0.0003999,120]
[392284548,1761307851344,-151.0,0.0003999,120]
[392284549,1761307851353,-151.0,0.0003999,120]
[392284550,1761307851361,-494.954697,0.0003999,120]
[392284551,1761307851369,-494.954697,0.0003999,120]
[392284552,1761307851378,-151.0,0.0003999,120]
[392284553,1761307851387,-151.0,0.0003999,120]
[392284554,1761307851396,-151.0,0.0003999,120]
[392284555,1761307851405,-494.954697,0.0003999,120]
[392284556,1761307851414,-151.0,0.0003999,120]
[392284557,1761307851423,-494.954697,0.0003999,120]
[392284558,1761307851432,-151.0,0.0003999,120]
[392284559,1761307851441,-151.0,0.0003999,120]
[392284560,1761307851450,-190.881111,0.0003999,120]
[392284561,1761307851459,-494.954697,0.0003999,120]
[392284562,1761307851468,-494.954697,0.0003999,120]
[392284563,1761307851478,-151.0,0.0003999,120]
[392284564,1761307851488,-151.0,0.0003999,120]
[392284565,1761307851497,-151.0,0.0003999,120]
[392284566,1761307851507,-151.0,0.0003999,120]
[392284567,1761307851516,-151.0,0.0003999,120]
[392284568,1761307851525,-151.0,0.0003999,120]
[392284569,1761307851535,-151.0,0.0003999,120]
[392284570,1761307851544,-151.0,0.0003999,120]
[392284571,1761307851554,-151.0,0.0003999,120]
[392284572,1761307851564,-151.0,0.0003999,120]
[392284573,1761307851573,-151.0,0.0003999,120]
[392284574,1761307851583,-151.0,0.0003999,120]
[392284575,1761307851592,-151.0,0.0003999,120]
[392284576,1761307851602,-151.0,0.0003999,120]
[392284577,1761307851611,-283.864456,0.0003999,120]
[392284578,1761307851623,-283.864456,0.0003999,120]
[392284579,1761307851632,-151.0,0.0003999,120]
[392284580,1761307851642,-242.667096,0.0003999,120]
[392284581,1761307851651,-223.29691,0.0003999,120]
[392284582,1761307851661,-283.864456,0.0003999,120]
[392284583,1761307851670,-283.864456,0.0003999,120]
[392284584,1761307851682,-223.29691,0.0003999,120]
[392284585,1761307851692,-471.32523,0.0003999,120]
[392284586,1761307851706,-471.32523,0.0003999,120]
[392284587,1761307851716,-283.864456,0.0003999,120]
[392284588,1761307851726,-223.29691,0.0003999,120]
[392284589,1761307851736,-223.29691,0.0003999,120]
[392284590,1761307851745,-283.864456,0.0003999,120]
[392284591,1761307851755,-471.32523,0.0003999,120]
[392284592,1761307851764,-471.32523,0.0003999,120]
[392284593,1761307851773,-283.864456,0.0003999,120]
[392284594,1761307851782,-283.864456,0.0003999,120]
[392284595,1761307851791,-223.29691,0.0003999,120]
[392284596,1761307851800,-223.29691,0.0003999,120]
[392284597,1761307851812,-471.32523,0.0003999,120]
[392284598,1761307851822,-471.32523,0.0003999,120]
[392284599,1761307851834,-223.29691,0.0003999,120]
[392284600,1761307851843,-223.29691,0.0003999,120]
[392284601,1761307851852,-471.32523,0.0003999,120]
[392284602,1761307851861,-471.32523,0.0003999,120]
[392284603,1761307851871,-151.0,0.0003999,120]
[392284604,1761307851880,-151.0,0.0003999,120]
[392284605,1761307851890,-151.0,0.0003999,120]
[392284606,1761307851899,-151.0,0.0003999,120]
[392284607,1761307851909,-151.0,0.0003999,120]
[392284608,1761307851918,-151.0,0.0003999,120]
[392284609,1761307851928,-151.0,0.0003999,120]
[392284610,1761307851937,-917.904031,0.0003999,120]
[392284611,1761307851946,-151.0,0.0003999,120]
[392284612,1761307851955,-917.904031,0.0003999,120]
[392284613,1761307851964,-151.0,0.0003999,120]
[392284614,1761307851973,-273.342284,0.0003999,120]
[392284615,1761307851982,-151.0,0.0003999,120]
[392284616,1761307851992,-151.0,0.0003999,120]
[392284617,1761307852001,-151.0,0.0003999,120]
[392284618,1761307852011,-917.904031,0.0003999,120]
[392284619,1761307852021,-917.904031,0.0003999,120]
[392284620,1761307852031,-256.93135,0.0003999,120]
[392284621,1761307852040,-917.904031,0.0003999,120]
[392284622,1761307852050,-917.904031,0.0003999,120]
[392284623,1761307852060,-256.93135,0.0003999,120]
[392284624,1761307852069,-151.0,0.0003999,60]
[392284625,1761307852079,-917.904031,0.0003999,120]
[392284626,1761307852089,-256.93135,0.0003999,120]
[392284627,1761307852098,-256.93135,0.0003999,120]
[392284628,1761307852107,-917.904023,0.0003999,120]
[392284629,1761307852117,-256.93135,0.0003999,120]
[392284630,1761307852127,-516.973854,0.0003999,120]
[392284631,1761307852135,-256.93135,0.0003999,120]
[392284632,1761307852145,-516.973854,0.0003999,120]
[392284633,1761307852155,-151.0,0.0003999,120]
[392284634,1761307852163,-151.0,0.0003999,120]
[392284635,1761307852172,-151.0,0.0003999,30]
[392284636,1761307852181,-256.93135,0.0003999,120]
[392284637,1761307852190,-516.973854,0.0003999,120]
[392284638,1761307852199,-151.0,0.0003999,30]
[392284639,1761307852208,-256.93135,0.0003999,120]
[392284640,1761307852217,-151.0,0.0003999,120]
[392284641,1761307852226,-516.973854,0.0003999,120]
[392284642,1761307852235,-151.0,0.0003999,120]
[392284643,1761307852244,-516.973854,0.0003999,120]
[392284644,1761307852253,-516.973854,0.0003999,120]
[392284645,1761307852262,-231.93324,0.0003999,120]
[392284646,1761307852271,-151.0,0.0003999,120]
[392284647,1761307852280,-151.0,0.0003999,120]
[392284648,1761307852290,-516.973854,0.0003999,120]
[392284649,1761307852299,-516.973856,0.0003999,120]
[392284650,1761307852308,-151.0,0.0003999,120]
[392284651,1761307852318,-151.0,0.0003999,120]
[392284652,1761307852327,-151.0,0.0003999,120]
[392284653,1761307852336,-158.638032,0.0003999,120]
[392284654,1761307852346,-151.0,0.0003999,120]
[392284655,1761307852356,-151.0,0.0003999,120]
[392284656,1761307852365,-426.83885,0.0003999,120]
[392284657,1761307852374,-151.0,0.0003999,120]
[392284658,1761307852384,-426.83885,0.0003999,120]
[392284659,1761307852393,-151.0,0.0003999,120]
[392284660,1761307852402,-426.83885,0.0003999,120]
[392284661,1761307852411,-151.0,0.0003999,120]
[392284662,1761307852420,-426.83885,0.0003999,120]
[392284663,1761307852429,-151.0,0.0003999,120]
[392284664,1761307852439,-426.83885,0.0003999,120]
[392284665,1761307852448,-426.83885,0.0003999,120]
[392284666,1761307852458,-426.83885,0.0003999,120]
[392284667,1761307852467,-426.838857,0.0003999,120]
[392284668,1761307852476,-151.0,0.0003999,120]
[392284669,1761307852485,-151.0,0.0003999,120]
[392284670,1761307852494,-151.0,0.0003999,120]
[392284671,1761307852503,-707.115867,0.0003999,120]
[392284672,1761307852512,-707.115867,0.0003999,120]
[392284673,1761307852521,-151.0,0.0003999,120]
[392284674,1761307852530,-151.0,0.0003999,120]
[392284675,1761307852539,-707.115867,0.0003999,120]
[392284676,1761307852550,-151.0,0.0003999,120]
[392284677,1761307852559,-707.115867,0.0003999,120]
[392284678,1761307852568,-1268.253906,0.0003999,120]
[392284679,1761307852578,-1268.253906,0.0003999,120]
[392284680,1761307852588,-707.115867,0.0003999,120]
[392284681,1761307852597,-707.115867,0.0003999,120]
[392284682,1761307852606,-1268.253906,0.0003999,120]
[392284683,1761307852615,-151.0,0.0003999,120]
[392284684,1761307852624,-1268.253906,0.0003999,120]
[392284685,1761307852634,-151.0,0.0003999,120]
[392284686,1761307852643,-707.115867,0.0003999,120]
[392284687,1761307852652,-707.115871,0.0003999,120]
[392284688,1761307852661,-1268.253906,0.0003999,120]
[392284689,1761307852670,-151.0,0.0003999,120]
[392284690,1761307852679,-1268.253906,0.0003999,120]
[392284691,1761307852688,-151.0,0.0003999,120]
[392284692,1761307852697,-1268.253906,0.0003999,120]
[392284693,1761307852706,-1268.253898,0.0003999,120]
[392284694,1761307852716,-5502.046745,0.0003999,120]
[392284695,1761307852725,-5502.046745,0.0003999,120]
[392284696,1761307852734,-151.0,0.0003999,120]
[392284697,1761307852743,-151.0,0.0003999,120]
[392284698,1761307852752,-1192.86373,0.0003999,120]
[392284699,1761307852762,-5502.046745,0.0003999,120]
[392284700,1761307852774,-1192.86373,0.0003999,120]
[392284701,1761307852783,-5502.046745,0.0003999,120]
[392284702,1761307852792,-1192.86373,0.0003999,120]
[392284703,1761307852802,-5502.046745,0.0003999,120]
[392284704,1761307852811,-1192.86373,0.0003999,120]
[392284705,1761307852820,-5502.046745,0.0003999,120]
[392284706,1761307852829,-215.539619,0.0003999,120]
[392284707,1761307852839,-215.539619,0.0003999,120]
[392284708,1761307852848,-1192.86373,0.0003999,120]
[392284709,1761307852857,-1192.86373,0.0003999,120]
[392284710,1761307852866,-5502.046745,0.0003999,120]
[392284711,1761307852875,-5502.046737,0.0003999,120]
[392284712,1761307852885,-215.539619,0.0003999,120]
[392284713,1761307852894,-1192.86373,0.0003999,120]
[392284714,1761307852904,-215.539619,0.0003999,120]
[392284715,1761307852912,-1192.863734,0.0003999,120]
[392284716,1761307852922,-70660.779613,0.0003999,2]
[392284717,1761307854170,-346.4546635,0.00039101,20]
[392284857,1761308285673,-171.41325894,0.00024932,2]
[392284982,1761308416710,340.49,0.00013699,2]
[392285026,1761308683458,360.18028956,0.00027397,120]
[392285032,1761308708895,5229.60581384,0.00015,2]
[392285033,1761308708921,6152.4101316,0.00015,2]
[392285034,1761308708944,6210.21581384,0.00015,2]
[392285035,1761308708968,6210.21581384,0.00015,2]
[392285036,1761308708992,6210.21581384,0.00015,2]
[392285037,1761308709016,6210.21581384,0.00015,2]
[392285038,1761308709040,6210.21581384,0.00015,2]
[392285039,1761308709067,6210.21581384,0.00015,2]
[392285040,1761308709091,6210.21581384,0.00015,2]
[392285041,1761308709115,6210.21581384,0.00015,2]
[392285042,1761308709144,57857.03781857,0.00015,2]
[392285059,1761308815983,6674.78,0.000162,5]
[392285092,1761308921366,7830.0496995,0.0001,2]
[392285100,1761308958138,-300.0,0.00019999,2]
[392285101,1761308958159,-3183.556412,0.0002,2]
[392285136,1761309031843,-300.0,0.00019999,2]
[392285137,1761309031853,-300.0,0.00019999,2]
[392285138,1761309031864,-900.0,0.00019999,2]
[392285139,1761309031877,-300.0,0.00019999,2]
[392285140,1761309031887,-150.0,0.00019999,2]
[392285141,1761309031897,-221.65536493,0.0002,2]
[392285142,1761309031909,-2491.41029886,0.0002,2]
[392285143,1761309032008,-563.89,0.0002,2]
[392285144,1761309032027,-3119.19838648,0.0002,2]
[392285145,1761309032038,-292.2577044,0.0002,2]
[392285146,1761309032048,-340.49,0.00020187,2]
[392285147,1761309032059,-301.99999937,0.000205,2]
[392285148,1761309032070,-300.0,0.00021777,2]
[392285149,1761309032080,-1615.0,0.00021881,2]
[392285150,1761309032090,-1200.0,0.00026673,2]
[392285151,1761309032100,-340.49,0.00026676,2]
[392285152,1761309032110,-151.0,0.00027397,2]
[392285153,1761309032121,-239.0,0.00028846,2]
[392285155,1761309032131,-500.0,0.0002937,2]
[392285157,1761309032141,-5689.81390341,0.00032,2]
[392285159,1761309032151,-340.49,0.00033165,2]
[392285161,1761309032162,-1000.0,0.0003537,2]
[392285164,1761309032172,-1000.0,0.00035644,2]
[392285166,1761309032186,-150.0,0.00035699,2]
[392285168,1761309032197,-150.0,0.00035699,120]
[392285170,1761309032207,-1000.0,0.00035918,2]
[392285172,1761309032217,-3008.21390149,0.00036,5]
[392285174,1761309032228,-166.66,0.00036014,30]
[392285176,1761309032238,-1000.0,0.00036192,2]
[392285177,1761309032252,-1000.0,0.00036466,2]
[392285178,1761309032262,-2613.73825917,0.00036648,2]
[392285179,1761309032279,-163.01,0.0003673,2]
[392285180,1761309032291,-315.73,0.0003673,2]
[392285181,1761309032301,-315.73,0.0003673,2]
[392285182,1761309032311,-315.73,0.0003673,2]
[392285183,1761309032322,-315.73,0.0003673,2]
[392285184,1761309032332,-315.73,0.0003673,2]
[392285185,1761309032342,-151.0,0.00036737,14]
[392285186,1761309032352,-151.0,0.00036737,14]
[392285187,1761309032361,-278.80376239,0.00036739,15]
[392285188,1761309032371,-194.48455091,0.00036739,15]
[392285189,1761309032380,-500.0,0.00036739,2]
[392285190,1761309032394,-500.0,0.00036739,2]
[392285191,1761309032403,-500.0,0.00036739,2]
[392285192,1761309032413,-1000.0,0.0003674,2]
[392285193,1761309032422,-122054.52895137,0.0003674,2]
[392285194,1761309032434,-26030.626124,0.0003674,2]
[392285199,1761309032478,-1827.65912022,0.0003674,2]
[392285292,1761309038206,-128505.93014357,0.0003674,2]
[392285293,1761309038227,-36787.36196952,0.0003674,2]
[392285298,1761309040067,-359.96,0.00018936,2]
[392285299,1761309040077,-359.96,0.00019933,2]
[392285300,1761309040088,-359.96,0.00020929,2]
[392285301,1761309040098,-359.96,0.00021926,2]
[392285302,1761309040108,-359.96,0.00022923,2]
[392285303,1761309040118,-359.96,0.00023919,2]
[392285304,1761309040129,-359.96,0.00024916,2]
[392285305,1761309040139,-359.96,0.00025912,2]
[392285306,1761309040150,-6332.36452397,0.0003674,2]
[392285307,1761309040162,-155741.13358386,0.0003674,2]
[392285308,1761309040176,-245060.49815675,0.0003674,2]
[392285309,1761309040200,-24100.69829879,0.0003674,2]
[392285310,1761309040211,-109802.05328852,0.0003674,2]
[392285311,1761309040220,-302.0,0.0003674,2]
[392285312,1761309040230,-451.22862457,0.0003674,120]
[392285313,1761309040240,-168.0,0.00036748,2]
[392285314,1761309040253,-275.57438061,0.00036773,5]
[392285315,1761309040263,-500.0,0.00036773,5]
[392285316,1761309040279,-202.80124093,0.00036773,5]
[392285317,1761309040291,-166.66,0.00036773,30]
[392285318,1761309040303,-300.0,0.000369,13]
[392285319,1761309040313,-150.0,0.00036962,7]
[392285320,1761309040324,-150.0,0.00036962,7]
[392285321,1761309040334,-168.0,0.00036981,2]
[392285322,1761309040346,-1000.0,0.00037014,2]
[392285323,1761309040356,-2613.73825908,0.00037192,2]
[392285324,1761309040368,-240.1831944,0.000372,120]
[392285325,1761309040380,-1000.0,0.00037288,2]
[392285326,1761309040391,-166.66,0.00037531,30]
[392285327,1761309040401,-1000.0,0.00037562,2]
[392285328,1761309040412,-2613.73825908,0.00037736,2]
[392285329,1761309040422,-1000.0,0.0003777,15]
[392285330,1761309040433,-168.0,0.0003782,2]
[392285331,1761309040443,-1000.0,0.00037836,2]
[392285332,1761309040452,-696.48,0.00038082,2]
[392285333,1761309040462,-696.48,0.00038082,2]
[392285334,1761309040472,-168.0,0.00038085,2]
[392285335,1761309040482,-344.63897163,0.0003811,2]
[392285336,1761309040492,-696.48,0.00038141,2]
[392285337,1761309040502,-696.48,0.00038141,2]
[392285338,1761309040512,-696.48,0.00038141,2]
[392285339,1761309040529,-168.0,0.00038144,2]
[392285340,1761309040539,-300.0,0.00038168,7]
[392285341,1761309040549,-725.63,0.00038241,2]
[392285342,1761309040559,-449.3,0.00038241,2]
[392285343,1761309040569,-2613.73825908,0.0003828,2]
[392285344,1761309040579,-166.66,0.00038289,30]
[392285345,1761309040588,-161.72,0.00038332,2]
[392285346,1761309040598,-1000.0,0.00038334,2]
[392285347,1761309040608,-497.83,0.00038356,2]
[392285349,1761309040618,-414.15,0.00038356,2]
[392285350,1761309040627,-547.6,0.00038356,2]
[392285351,1761309040636,-1211.86,0.00038356,2]
[392285352,1761309040646,-150.0,0.00038356,2]
[392285353,1761309040656,-176.35,0.00038356,2]
[392285354,1761309040665,-150.0,0.00038356,2]
[392285355,1761309040674,-168.43,0.00038356,2]
[392285356,1761309040683,-150.0,0.00038378,2]
[392285357,1761309040693,-150.0,0.00038378,2]
[392285358,1761309040702,-150.0,0.00038378,2]
[392285359,1761309040711,-150.0,0.00038378,2]
[392285360,1761309040721,-1153.0,0.00038435,2]
[392285361,1761309040731,-200.01,0.00038466,2]
[392285362,1761309040741,-430.48,0.00038466,2]
[392285363,1761309040750,-168.52,0.00038466,2]
[392285364,1761309040760,-336.99,0.00038466,2]
[392285365,1761309040769,-5888.0,0.00038542,7]
[392285366,1761309040785,-164.1,0.00038564,120]
[392285367,1761309040795,-250.0,0.00038589,2]
[392285368,1761309040804,-168.0,0.00038708,2]
[392285369,1761309040814,-817.92489502,0.0003876,2]
[392285370,1761309040825,-150.0,0.00038795,2]
[392285371,1761309040834,-2613.73825908,0.00038824,2]
[392285372,1761309040844,-174.96,0.00038904,2]
[392285373,1761309040854,-300.0,0.00038904,2]
[392285374,1761309040865,-150.0,0.00038904,2]
[392285375,1761309040875,-206.0807125,0.00038967,2]
[392285376,1761309040885,-817.92489502,0.00038975,2]
[392285377,1761309040894,-21087.92380437,0.00039,2]
[392285378,1761309040904,-10000.0,0.00039,120]
[392285379,1761309040913,-475.59,0.00039041,2]
[392285380,1761309040923,-166.66,0.00039047,30]
[392285381,1761309040933,-500.0,0.00039083,30]
[392285382,1761309040943,-258.895,0.00039101,53]
[392285383,1761309040952,-747.00853756,0.00039101,20]
[392285384,1761309040962,-1047.92664649,0.00039101,20]
[392285385,1761309040971,-2401.64,0.00039151,2]
[392285386,1761309040982,-151.0,0.00039155,2]
[392285387,1761309040991,-151.0,0.00039155,2]
[392285388,1761309041000,-151.0,0.00039155,2]
[392285389,1761309041011,-151.0,0.00039155,2]
[392285390,1761309041027,-151.0,0.00039155,2]
[392285391,1761309041037,-151.0,0.00039155,2]
[392285392,1761309041047,-151.0,0.00039155,2]
[392285393,1761309041057,-151.0,0.00039155,2]
[392285394,1761309041067,-151.0,0.00039155,2]
[392285395,1761309041077,-151.0,0.00039155,2]
[392285396,1761309041088,-151.0,0.00039155,2]